[Event "Titled Tuesday Blitz May 30 Early 2023"]
[White "Sarkar, Justin"]
[Black "Janaszak, Dawid"]
[WhiteFideId "2010011"]
[BlackFideId "1119206"]
[WhiteElo "2168"]
[BlackElo "2220"]
[Result "0-1"]
[Round "07"]
[TimeControl "180+2"]
[Date "2023.05.30"]
[WhiteClock "0:00:00"]
[BlackClock "0:01:23"]

1. e4 {[%clk 0:02:59]}  c5 {[%clk 0:02:59]} 2. Nf3 {[%clk 0:02:57]}  e6 {[%clk 0:02:59]} 3. d4 {[%clk 0:02:57]}  cxd4 {[%clk 0:03:00]} 4. Nxd4 {[%clk 0:02:57]}  a6 {[%clk 0:03:00]} 5. c3 {[%clk 0:02:50]}  g6 {[%clk 0:03:00]} 6. g3 {[%clk 0:02:49]}  Bg7 {[%clk 0:03:00]} 7. Bg2 {[%clk 0:02:48]}  Ne7 {[%clk 0:02:59]} 8. O-O {[%clk 0:02:47]}  O-O {[%clk 0:02:59]} 9. a4 {[%clk 0:02:37]}  d5 {[%clk 0:02:59]} 10. exd5 {[%clk 0:02:30]}  exd5 {[%clk 0:02:58]} 11. Bg5 {[%clk 0:02:23]}  h6 {[%clk 0:02:57]} 12. Be3 {[%clk 0:02:21]}  Nbc6 {[%clk 0:02:54]} 13. Qd2 {[%clk 0:02:18]}  Kh7 {[%clk 0:02:52]} 14. Nxc6 {[%clk 0:02:14]}  bxc6 {[%clk 0:02:49]} 15. Bd4 {[%clk 0:02:13]}  Bxd4 {[%clk 0:02:48]} 16. cxd4 {[%clk 0:02:02]}  Nf5 {[%clk 0:02:46]} 17. a5 {[%clk 0:01:52]}  Qf6 {[%clk 0:02:45]} 18. Rd1 {[%clk 0:01:50]}  Rb8 {[%clk 0:02:42]} 19. Nc3 {[%clk 0:01:47]}  Re8 {[%clk 0:02:39]} 20. Bf1 {[%clk 0:01:00]}  Nd6 {[%clk 0:02:36]} 21. Na4 {[%clk 0:00:48]}  Ne4 {[%clk 0:02:31]} 22. Qf4 {[%clk 0:00:41]}  Qxf4 {[%clk 0:02:24]} 23. gxf4 {[%clk 0:00:41]}  Bg4 {[%clk 0:02:24]} 24. Rd3 {[%clk 0:00:36]}  Bf5 {[%clk 0:02:18]} 25. Re3 {[%clk 0:00:35]}  Rb4 {[%clk 0:02:10]} 26. Nc5 {[%clk 0:00:26]}  Ra8 {[%clk 0:02:00]} 27. Nxa6 {[%clk 0:00:15]}  Rxb2 {[%clk 0:02:00]} 28. Nc5 {[%clk 0:00:10]}  Nd2 {[%clk 0:02:00]} 29. a6 {[%clk 0:00:08]}  Nc4 {[%clk 0:01:59]} 30. Bxc4 {[%clk 0:00:07]}  dxc4 {[%clk 0:01:59]} 31. a7 {[%clk 0:00:06]}  Rb1+ {[%clk 0:01:52]} 32. Rxb1 {[%clk 0:00:06]}  Bxb1 {[%clk 0:01:53]} 33. Re1 {[%clk 0:00:06]}  Bf5 {[%clk 0:01:51]} 34. Ra1 {[%clk 0:00:06]}  c3 {[%clk 0:01:50]} 35. Kf1 {[%clk 0:00:06]}  c2 {[%clk 0:01:45]} 36. Nb3 {[%clk 0:00:05]}  Bg4 {[%clk 0:01:26]} 37. Ke1 {[%clk 0:00:05]}  g5 {[%clk 0:01:21]} 38. fxg5 {[%clk 0:00:04]}  hxg5 {[%clk 0:01:22]} 39. Kd2 {[%clk 0:00:04]}  Bf5 {[%clk 0:01:23]} 40. Nc5 {[%clk 0:00:02]}  Kg6 {[%clk 0:01:23]} 41. Nb7 {[%clk 0:00:01]}  c5 {[%clk 0:01:24]} 42. dxc5 {[%clk 0:00:00]}  Rb8 {[%clk 0:01:23]} 0-1


[Site "https://www.chess.com"]

[Event "Titled Tuesday Blitz May 30 Early 2023"]
[White "Martinez, Shawn"]
[Black "Ljukin, Sergei"]
[WhiteFideId "2039770"]
[BlackFideId "14102200"]
[WhiteElo "2174"]
[BlackElo "2312"]
[Result "0-1"]
[Round "07"]
[TimeControl "180+2"]
[Date "2023.05.30"]
[WhiteClock "0:00:04"]
[BlackClock "0:00:08"]

1. e4 {[%clk 0:02:53]}  e6 {[%clk 0:02:59]} 2. d4 {[%clk 0:02:53]}  d5 {[%clk 0:02:58]} 3. Bd3 {[%clk 0:02:51]}  dxe4 {[%clk 0:02:58]} 4. Bxe4 {[%clk 0:02:52]}  Nf6 {[%clk 0:02:58]} 5. Bf3 {[%clk 0:02:50]}  Nbd7 {[%clk 0:02:58]} 6. Be3 {[%clk 0:02:48]}  Bd6 {[%clk 0:02:56]} 7. Nc3 {[%clk 0:02:44]}  e5 {[%clk 0:02:53]} 8. Nge2 {[%clk 0:02:41]}  O-O {[%clk 0:02:48]} 9. O-O {[%clk 0:02:40]}  Re8 {[%clk 0:02:46]} 10. dxe5 {[%clk 0:02:40]}  Nxe5 {[%clk 0:02:46]} 11. Nd4 {[%clk 0:02:40]}  Nxf3+ {[%clk 0:02:45]} 12. Qxf3 {[%clk 0:02:40]}  c6 {[%clk 0:02:08]} 13. Nf5 {[%clk 0:02:36]}  Bxf5 {[%clk 0:02:06]} 14. Qxf5 {[%clk 0:02:36]}  Qc7 {[%clk 0:02:04]} 15. h3 {[%clk 0:02:32]}  Be5 {[%clk 0:02:02]} 16. Rad1 {[%clk 0:02:07]}  Bxc3 {[%clk 0:02:00]} 17. bxc3 {[%clk 0:02:07]}  Rad8 {[%clk 0:01:59]} 18. Rxd8 {[%clk 0:01:50]}  Qxd8 {[%clk 0:01:47]} 19. c4 {[%clk 0:01:50]}  b6 {[%clk 0:01:40]} 20. Qf3 {[%clk 0:01:47]}  c5 {[%clk 0:01:36]} 21. Rd1 {[%clk 0:01:47]}  Qe7 {[%clk 0:01:34]} 22. Qc6 {[%clk 0:01:40]}  h6 {[%clk 0:01:28]} 23. Qa4 {[%clk 0:01:32]}  Qb7 {[%clk 0:00:52]} 24. Rd6 {[%clk 0:01:24]}  Re4 {[%clk 0:00:41]} 25. c3 {[%clk 0:01:15]}  Qe7 {[%clk 0:00:37]} 26. Qc6 {[%clk 0:01:09]}  Rxc4 {[%clk 0:00:32]} 27. Qc8+ {[%clk 0:01:00]}  Kh7 {[%clk 0:00:32]} 28. Qf5+ {[%clk 0:01:00]}  Kg8 {[%clk 0:00:32]} 29. Rc6 {[%clk 0:00:59]}  Re4 {[%clk 0:00:20]} 30. Rc8+ {[%clk 0:00:47]}  Ne8 {[%clk 0:00:20]} 31. a4 {[%clk 0:00:46]}  g6 {[%clk 0:00:19]} 32. Qd5 {[%clk 0:00:41]}  Kh7 {[%clk 0:00:16]} 33. Qa8 {[%clk 0:00:39]}  Nd6 {[%clk 0:00:11]} 34. Rh8+ {[%clk 0:00:36]}  Kg7 {[%clk 0:00:11]} 35. Qg8+ {[%clk 0:00:31]}  Kf6 {[%clk 0:00:11]} 36. Rxh6 {[%clk 0:00:29]}  Nf5 {[%clk 0:00:10]} 37. Qh8+ {[%clk 0:00:29]}  Ke6 {[%clk 0:00:10]} 38. Rh7 {[%clk 0:00:23]}  Nxe3 {[%clk 0:00:10]} 39. fxe3 {[%clk 0:00:23]}  Rxe3 {[%clk 0:00:10]} 40. Qc8+ {[%clk 0:00:22]}  Kf6 {[%clk 0:00:10]} 41. Qh8+ {[%clk 0:00:17]}  Kg5 {[%clk 0:00:08]} 42. h4+ {[%clk 0:00:06]}  Kg4 {[%clk 0:00:08]} 43. Qc8+ {[%clk 0:00:06]}  f5 {[%clk 0:00:08]} 44. Rh6 {[%clk 0:00:04]}  Re1+ {[%clk 0:00:07]} 45. Kh2 {[%clk 0:00:04]}  Qe5+ {[%clk 0:00:08]} 46. g3 {[%clk 0:00:04]}  Qxg3# {[%clk 0:00:08]} 0-1


[Site "https://www.chess.com"]

[Event "Titled Tuesday Blitz May 30 Early 2023"]
[White "Zaksaite, Salomeja"]
[Black "Andreev, Konstantin"]
[WhiteFideId "12801496"]
[BlackFideId "24239305"]
[WhiteElo "2059"]
[BlackElo "2106"]
[Result "1-0"]
[Round "07"]
[TimeControl "180+2"]
[Date "2023.05.30"]
[WhiteClock "0:00:26"]
[BlackClock "0:00:42"]

1. e4 {[%clk 0:02:57]}  c5 {[%clk 0:02:59]} 2. Nf3 {[%clk 0:02:54]}  e6 {[%clk 0:03:00]} 3. g3 {[%clk 0:02:52]}  Nc6 {[%clk 0:02:59]} 4. Bg2 {[%clk 0:02:51]}  a6 {[%clk 0:02:58]} 5. O-O {[%clk 0:02:49]}  b5 {[%clk 0:02:58]} 6. d4 {[%clk 0:02:44]}  cxd4 {[%clk 0:02:57]} 7. Nxd4 {[%clk 0:02:44]}  Bb7 {[%clk 0:02:55]} 8. a4 {[%clk 0:02:44]}  b4 {[%clk 0:02:54]} 9. Re1 {[%clk 0:02:43]}  Nge7 {[%clk 0:02:49]} 10. c4 {[%clk 0:02:43]}  bxc3 {[%clk 0:02:47]} 11. Nxc3 {[%clk 0:02:44]}  Nxd4 {[%clk 0:02:47]} 12. Qxd4 {[%clk 0:02:43]}  Nc6 {[%clk 0:02:45]} 13. Qd1 {[%clk 0:02:39]}  d6 {[%clk 0:02:37]} 14. Rb1 {[%clk 0:02:08]}  Be7 {[%clk 0:02:24]} 15. b4 {[%clk 0:02:04]}  O-O {[%clk 0:02:22]} 16. b5 {[%clk 0:02:04]}  axb5 {[%clk 0:02:22]} 17. Nxb5 {[%clk 0:02:02]}  Rb8 {[%clk 0:02:16]} 18. Ba3 {[%clk 0:01:53]}  Qa5 {[%clk 0:02:02]} 19. Nxd6 {[%clk 0:01:46]}  Rfd8 {[%clk 0:01:57]} 20. e5 {[%clk 0:01:19]}  Nxe5 {[%clk 0:01:43]} 21. Bxb7 {[%clk 0:01:11]}  Bxd6 {[%clk 0:01:25]} 22. Bxd6 {[%clk 0:01:07]}  Nc4 {[%clk 0:01:10]} 23. Bxb8 {[%clk 0:01:04]}  Rxd1 {[%clk 0:01:11]} 24. Rexd1 {[%clk 0:00:57]}  h5 {[%clk 0:01:12]} 25. Bf3 {[%clk 0:00:46]}  h4 {[%clk 0:01:05]} 26. Bf4 {[%clk 0:00:33]}  e5 {[%clk 0:01:01]} 27. Bg5 {[%clk 0:00:32]}  h3 {[%clk 0:00:52]} 28. Rb8+ {[%clk 0:00:28]}  Kh7 {[%clk 0:00:50]} 29. Be4+ {[%clk 0:00:28]}  g6 {[%clk 0:00:42]} 30. Bf6 {[%clk 0:00:26]} 1-0


[Site "https://www.chess.com"]

[Event "Titled Tuesday Blitz May 30 Early 2023"]
[White "Blackwhite017"]
[Black "Sai Han Thiha"]
[BlackFideId "13012290"]
[WhiteElo "2117"]
[BlackElo "1954"]
[Result "0-1"]
[Round "07"]
[TimeControl "180+2"]
[Date "2023.05.30"]
[WhiteClock "0:00:13"]
[BlackClock "0:00:44"]

1. e4 {[%clk 0:03:00]}  c6 {[%clk 0:03:00]} 2. Nf3 {[%clk 0:03:00]}  d5 {[%clk 0:03:01]} 3. exd5 {[%clk 0:03:01]}  cxd5 {[%clk 0:03:01]} 4. Ne5 {[%clk 0:03:02]}  Nc6 {[%clk 0:03:00]} 5. d4 {[%clk 0:02:58]}  Qb6 {[%clk 0:02:58]} 6. c3 {[%clk 0:02:54]}  Bf5 {[%clk 0:02:37]} 7. g4 {[%clk 0:02:37]}  Be4 {[%clk 0:02:32]} 8. f3 {[%clk 0:02:37]}  Bxb1 {[%clk 0:02:31]} 9. Rxb1 {[%clk 0:02:37]}  Nxe5 {[%clk 0:02:32]} 10. dxe5 {[%clk 0:02:36]}  O-O-O {[%clk 0:02:17]} 11. Qb3 {[%clk 0:02:23]}  h5 {[%clk 0:02:04]} 12. Qxb6 {[%clk 0:02:17]}  axb6 {[%clk 0:02:05]} 13. Bg2 {[%clk 0:02:13]}  e6 {[%clk 0:02:05]} 14. b4 {[%clk 0:01:57]}  Ne7 {[%clk 0:01:47]} 15. Be3 {[%clk 0:01:53]}  Kc7 {[%clk 0:01:47]} 16. h3 {[%clk 0:01:39]}  Ng6 {[%clk 0:01:41]} 17. f4 {[%clk 0:01:39]}  Be7 {[%clk 0:01:33]} 18. Ke2 {[%clk 0:01:09]}  hxg4 {[%clk 0:01:26]} 19. hxg4 {[%clk 0:01:09]}  Rxh1 {[%clk 0:01:27]} 20. Bxh1 {[%clk 0:01:10]}  b5 {[%clk 0:01:12]} 21. Ra1 {[%clk 0:00:54]}  Ra8 {[%clk 0:01:11]} 22. a3 {[%clk 0:00:48]}  f6 {[%clk 0:01:07]} 23. exf6 {[%clk 0:00:47]}  Bxf6 {[%clk 0:01:08]} 24. Kd3 {[%clk 0:00:45]}  Kd6 {[%clk 0:01:04]} 25. g5 {[%clk 0:00:43]}  Bd8 {[%clk 0:01:01]} 26. Bc5+ {[%clk 0:00:42]}  Kd7 {[%clk 0:01:01]} 27. Be3 {[%clk 0:00:42]}  Ne7 {[%clk 0:00:56]} 28. Bf3 {[%clk 0:00:38]}  Nf5 {[%clk 0:00:56]} 29. Bf2 {[%clk 0:00:37]}  Bc7 {[%clk 0:00:53]} 30. Be3 {[%clk 0:00:28]}  Rf8 {[%clk 0:00:47]} 31. Bh5 {[%clk 0:00:20]}  Ng3 {[%clk 0:00:43]} 32. Bg6 {[%clk 0:00:18]}  Bxf4 {[%clk 0:00:44]} 33. Rf1 {[%clk 0:00:13]}  Nxf1 {[%clk 0:00:44]} 0-1


[Site "https://www.chess.com"]

[Event "Titled Tuesday Blitz May 30 Early 2023"]
[White "Brod, Manfred"]
[Black "Szyszylo, Rafal"]
[WhiteFideId "1602110"]
[BlackFideId "1109626"]
[WhiteElo "2152"]
[BlackElo "1951"]
[Result "0-1"]
[Round "07"]
[TimeControl "180+2"]
[Date "2023.05.30"]
[WhiteClock "0:00:00"]
[BlackClock "0:00:30"]

1. e4 {[%clk 0:03:00]}  d6 {[%clk 0:02:56]} 2. d4 {[%clk 0:03:00]}  g6 {[%clk 0:02:56]} 3. Nc3 {[%clk 0:03:00]}  Nf6 {[%clk 0:02:55]} 4. Be3 {[%clk 0:02:59]}  c6 {[%clk 0:02:55]} 5. Qd2 {[%clk 0:02:58]}  b5 {[%clk 0:02:55]} 6. Bd3 {[%clk 0:02:55]}  Nbd7 {[%clk 0:02:48]} 7. Nf3 {[%clk 0:02:47]}  Nb6 {[%clk 0:02:42]} 8. h3 {[%clk 0:02:35]}  Bg7 {[%clk 0:02:35]} 9. b3 {[%clk 0:02:25]}  O-O {[%clk 0:02:34]} 10. a4 {[%clk 0:02:21]}  a6 {[%clk 0:02:15]} 11. O-O {[%clk 0:02:20]}  Bb7 {[%clk 0:02:12]} 12. Ne2 {[%clk 0:02:00]}  Qc7 {[%clk 0:01:59]} 13. a5 {[%clk 0:01:55]}  Nbd7 {[%clk 0:01:59]} 14. c4 {[%clk 0:01:55]}  e5 {[%clk 0:01:41]} 15. dxe5 {[%clk 0:01:47]}  Nxe5 {[%clk 0:01:40]} 16. Nxe5 {[%clk 0:01:46]}  dxe5 {[%clk 0:01:40]} 17. cxb5 {[%clk 0:01:13]}  cxb5 {[%clk 0:01:35]} 18. Bb6 {[%clk 0:00:53]}  Qd7 {[%clk 0:01:33]} 19. f3 {[%clk 0:00:48]}  Qe6 {[%clk 0:01:24]} 20. Qb2 {[%clk 0:00:38]}  Nd7 {[%clk 0:01:22]} 21. Be3 {[%clk 0:00:35]}  f5 {[%clk 0:01:14]} 22. Rfd1 {[%clk 0:00:31]}  Kh8 {[%clk 0:01:07]} 23. Rac1 {[%clk 0:00:29]}  Rac8 {[%clk 0:01:00]} 24. g4 {[%clk 0:00:22]}  fxg4 {[%clk 0:00:52]} 25. fxg4 {[%clk 0:00:22]}  Rxc1 {[%clk 0:00:34]} 26. Rxc1 {[%clk 0:00:21]}  Rf3 {[%clk 0:00:33]} 27. Qd2 {[%clk 0:00:13]}  Rxh3 {[%clk 0:00:33]} 28. Rc7 {[%clk 0:00:01]}  Qxg4+ {[%clk 0:00:32]} 29. Kf2 {[%clk 0:00:00]}  Qh4+ {[%clk 0:00:30]} 0-1


[Site "https://www.chess.com"]

[Event "Titled Tuesday Blitz May 30 Early 2023"]
[White "Kovalevsky, Stanislav"]
[Black "Lohani, Sujana"]
[WhiteFideId "13508598"]
[BlackFideId "12311987"]
[WhiteElo "2174"]
[BlackElo "1718"]
[Result "1-0"]
[Round "07"]
[TimeControl "180+2"]
[Date "2023.05.30"]
[WhiteClock "0:00:36"]
[BlackClock "0:00:00"]

1. c4 {[%clk 0:03:00]}  g6 {[%clk 0:02:50]} 2. Nc3 {[%clk 0:02:54]}  Bg7 {[%clk 0:02:49]} 3. g3 {[%clk 0:02:53]}  d6 {[%clk 0:02:50]} 4. Bg2 {[%clk 0:02:53]}  Nf6 {[%clk 0:02:45]} 5. b4 {[%clk 0:02:52]}  O-O {[%clk 0:02:45]} 6. Bb2 {[%clk 0:02:48]}  c6 {[%clk 0:02:45]} 7. Nf3 {[%clk 0:02:47]}  e5 {[%clk 0:02:43]} 8. d3 {[%clk 0:02:47]}  Re8 {[%clk 0:02:41]} 9. O-O {[%clk 0:02:44]}  e4 {[%clk 0:02:39]} 10. dxe4 {[%clk 0:02:43]}  Nxe4 {[%clk 0:02:39]} 11. Qc2 {[%clk 0:02:25]}  Nxc3 {[%clk 0:02:01]} 12. Bxc3 {[%clk 0:02:25]}  Bxc3 {[%clk 0:02:00]} 13. Qxc3 {[%clk 0:02:25]}  Rxe2 {[%clk 0:02:01]} 14. Rfe1 {[%clk 0:02:20]}  Qe7 {[%clk 0:01:56]} 15. Ng5 {[%clk 0:02:13]}  Rxe1+ {[%clk 0:01:44]} 16. Rxe1 {[%clk 0:02:14]}  Be6 {[%clk 0:01:42]} 17. Ne4 {[%clk 0:02:06]}  Nd7 {[%clk 0:01:32]} 18. Qd4 {[%clk 0:02:01]}  d5 {[%clk 0:01:19]} 19. cxd5 {[%clk 0:01:55]}  cxd5 {[%clk 0:01:19]} 20. Nc3 {[%clk 0:01:52]}  Qf6 {[%clk 0:01:14]} 21. Qd2 {[%clk 0:01:42]}  Nb6 {[%clk 0:01:07]} 22. Rd1 {[%clk 0:01:26]}  Rd8 {[%clk 0:00:54]} 23. Nb5 {[%clk 0:01:26]}  a6 {[%clk 0:00:49]} 24. Nd4 {[%clk 0:01:24]}  Nc4 {[%clk 0:00:41]} 25. Qh6 {[%clk 0:01:19]}  Qg7 {[%clk 0:00:36]} 26. Qf4 {[%clk 0:01:18]}  Nd6 {[%clk 0:00:27]} 27. Qg5 {[%clk 0:01:06]}  Rd7 {[%clk 0:00:24]} 28. Bxd5 {[%clk 0:00:59]}  Bxd5 {[%clk 0:00:20]} 29. Qxd5 {[%clk 0:00:58]}  Rd8 {[%clk 0:00:12]} 30. Ne6 {[%clk 0:00:43]}  fxe6 {[%clk 0:00:11]} 31. Qxe6+ {[%clk 0:00:44]}  Qf7 {[%clk 0:00:11]} 32. Rxd6 {[%clk 0:00:43]}  Re8 {[%clk 0:00:09]} 33. Qxf7+ {[%clk 0:00:40]}  Kxf7 {[%clk 0:00:09]} 34. Rd7+ {[%clk 0:00:41]}  Re7 {[%clk 0:00:07]} 35. Rxe7+ {[%clk 0:00:41]}  Kxe7 {[%clk 0:00:08]} 36. f4 {[%clk 0:00:40]}  Ke6 {[%clk 0:00:08]} 37. Kf2 {[%clk 0:00:40]}  Kd5 {[%clk 0:00:08]} 38. Ke3 {[%clk 0:00:39]}  Kc4 {[%clk 0:00:08]} 39. g4 {[%clk 0:00:40]}  Kxb4 {[%clk 0:00:05]} 40. Kd4 {[%clk 0:00:38]}  Kb5 {[%clk 0:00:00]} 41. Kd5 {[%clk 0:00:36]} 1-0


[Site "https://www.chess.com"]

[Event "Titled Tuesday Blitz May 30 Early 2023"]
[White "vlajkovicS"]
[Black "Maluco_do_Natal_00"]
[WhiteElo "2619"]
[BlackElo "2045"]
[Result "1-0"]
[Round "07"]
[TimeControl "180+2"]
[Date "2023.05.30"]
[WhiteClock "0:00:18"]
[BlackClock "0:00:00"]

1. d4 {[%clk 0:03:00]}  d5 {[%clk 0:02:57]} 2. c4 {[%clk 0:03:00]}  c6 {[%clk 0:02:56]} 3. Nc3 {[%clk 0:03:00]}  Nf6 {[%clk 0:02:57]} 4. Nf3 {[%clk 0:02:59]}  dxc4 {[%clk 0:02:57]} 5. a4 {[%clk 0:02:59]}  Bf5 {[%clk 0:02:56]} 6. Ne5 {[%clk 0:02:58]}  Nbd7 {[%clk 0:02:56]} 7. Nxc4 {[%clk 0:02:58]}  Nb6 {[%clk 0:02:56]} 8. Ne5 {[%clk 0:02:58]}  a5 {[%clk 0:02:56]} 9. f3 {[%clk 0:02:58]}  Nbd7 {[%clk 0:02:52]} 10. Qb3 {[%clk 0:02:54]}  Nxe5 {[%clk 0:02:24]} 11. dxe5 {[%clk 0:02:55]}  Nd7 {[%clk 0:02:22]} 12. Qxb7 {[%clk 0:02:03]}  Qc8 {[%clk 0:02:11]} 13. Qxc8+ {[%clk 0:02:00]}  Rxc8 {[%clk 0:02:11]} 14. e4 {[%clk 0:02:01]}  Be6 {[%clk 0:02:04]} 15. f4 {[%clk 0:02:00]}  g6 {[%clk 0:01:54]} 16. Be3 {[%clk 0:02:00]}  Bh6 {[%clk 0:01:40]} 17. Kf2 {[%clk 0:01:18]}  Rb8 {[%clk 0:01:28]} 18. Rb1 {[%clk 0:01:17]}  Bb3 {[%clk 0:01:09]} 19. Bd3 {[%clk 0:01:17]}  Nb6 {[%clk 0:01:00]} 20. Ra1 {[%clk 0:00:32]}  O-O {[%clk 0:00:55]} 21. Ne2 {[%clk 0:00:29]}  Nc4 {[%clk 0:00:35]} 22. Bd4 {[%clk 0:00:27]}  Rfd8 {[%clk 0:00:24]} 23. Rhc1 {[%clk 0:00:24]}  Nxb2 {[%clk 0:00:12]} 24. Ba6 {[%clk 0:00:24]}  Nxa4 {[%clk 0:00:09]} 25. Rxc6 {[%clk 0:00:23]}  Bxf4 {[%clk 0:00:06]} 26. g3 {[%clk 0:00:18]}  Bd2 {[%clk 0:00:05]} 27. e6 {[%clk 0:00:18]}  fxe6 {[%clk 0:00:03]} 28. Bc4 {[%clk 0:00:18]}  Bxc4 {[%clk 0:00:03]} 29. Rxc4 {[%clk 0:00:18]}  Nb2 {[%clk 0:00:03]} 30. Rc6 {[%clk 0:00:17]}  Nd3+ {[%clk 0:00:03]} 31. Kf3 {[%clk 0:00:16]}  Bb4 {[%clk 0:00:03]} 32. Rxe6 {[%clk 0:00:16]}  Nc5 {[%clk 0:00:03]} 33. Rxe7 {[%clk 0:00:16]}  Nxe4 {[%clk 0:00:02]} 34. Rxe4 {[%clk 0:00:15]}  Rf8+ {[%clk 0:00:02]} 35. Rf4 {[%clk 0:00:15]}  Rxf4+ {[%clk 0:00:01]} 36. Nxf4 {[%clk 0:00:16]}  Rd8 {[%clk 0:00:01]} 37. Ke4 {[%clk 0:00:17]}  Re8+ {[%clk 0:00:01]} 38. Kd5 {[%clk 0:00:17]}  Rd8+ {[%clk 0:00:01]} 39. Kc4 {[%clk 0:00:17]}  Rc8+ {[%clk 0:00:00]} 40. Kb3 {[%clk 0:00:18]} 1-0


[Site "https://www.chess.com"]

[Event "Titled Tuesday Blitz May 30 Early 2023"]
[White "agvania123"]
[Black "Omariev, Maksim"]
[BlackFideId "4193423"]
[WhiteElo "2252"]
[BlackElo "2460"]
[Result "0-1"]
[Round "07"]
[TimeControl "180+2"]
[Date "2023.05.30"]
[WhiteClock "0:00:00"]
[BlackClock "0:00:03"]

1. Nf3 {[%clk 0:03:00]}  d5 {[%clk 0:02:59]} 2. g3 {[%clk 0:03:00]}  c6 {[%clk 0:03:00]} 3. Bg2 {[%clk 0:03:01]}  Nf6 {[%clk 0:03:00]} 4. O-O {[%clk 0:03:01]}  Bf5 {[%clk 0:03:01]} 5. c4 {[%clk 0:03:01]}  e6 {[%clk 0:03:01]} 6. b3 {[%clk 0:03:01]}  h6 {[%clk 0:03:01]} 7. Bb2 {[%clk 0:03:01]}  Bh7 {[%clk 0:03:02]} 8. d4 {[%clk 0:02:59]}  Nbd7 {[%clk 0:03:02]} 9. Nbd2 {[%clk 0:02:59]}  Bd6 {[%clk 0:03:02]} 10. Ne5 {[%clk 0:02:59]}  O-O {[%clk 0:03:02]} 11. Re1 {[%clk 0:02:57]}  Qc7 {[%clk 0:03:01]} 12. Ndf3 {[%clk 0:02:54]}  Rfd8 {[%clk 0:02:50]} 13. Rc1 {[%clk 0:02:45]}  a5 {[%clk 0:02:47]} 14. a4 {[%clk 0:02:31]}  Bb4 {[%clk 0:02:46]} 15. Bc3 {[%clk 0:02:29]}  Nxe5 {[%clk 0:02:41]} 16. Nxe5 {[%clk 0:02:26]}  dxc4 {[%clk 0:02:38]} 17. Nxc4 {[%clk 0:02:08]}  Bxc3 {[%clk 0:02:34]} 18. Rxc3 {[%clk 0:02:07]}  Nd5 {[%clk 0:02:34]} 19. Rc1 {[%clk 0:02:00]}  Nb4 {[%clk 0:02:31]} 20. Qd2 {[%clk 0:01:40]}  e5 {[%clk 0:02:18]} 21. Nxe5 {[%clk 0:01:02]}  Qxe5 {[%clk 0:01:55]} 22. Qxb4 {[%clk 0:01:02]}  Qxe2 {[%clk 0:00:12]} 23. Qxb7 {[%clk 0:00:36]}  Qb2 {[%clk 0:00:12]} 24. Qxc6 {[%clk 0:00:26]}  Rab8 {[%clk 0:00:03]} 25. d5 {[%clk 0:00:19]}  Qxb3 {[%clk 0:00:03]} 26. d6 {[%clk 0:00:18]}  Qb4 {[%clk 0:00:02]} 27. d7 {[%clk 0:00:05]}  Bf5 {[%clk 0:00:03]} 28. Qc7 {[%clk 0:00:03]}  Rxd7 {[%clk 0:00:02]} 29. Qf4 {[%clk 0:00:02]}  Be6 {[%clk 0:00:01]} 30. Qxb4 {[%clk 0:00:02]}  axb4 {[%clk 0:00:02]} 31. Rc8+ {[%clk 0:00:02]}  Rxc8 {[%clk 0:00:02]} 32. a5 {[%clk 0:00:03]}  Rb8 {[%clk 0:00:03]} 33. a6 {[%clk 0:00:03]}  Ra7 {[%clk 0:00:03]} 34. Ra1 {[%clk 0:00:03]}  b3 {[%clk 0:00:04]} 35. Bb7 {[%clk 0:00:03]}  Rbxb7 {[%clk 0:00:03]} 36. axb7 {[%clk 0:00:03]}  Rxb7 {[%clk 0:00:03]} 37. Rb1 {[%clk 0:00:00]}  b2 {[%clk 0:00:03]} 0-1


[Site "https://www.chess.com"]

[Event "Titled Tuesday Blitz May 30 Early 2023"]
[White "De Souza, Cristiano Gomes"]
[Black "Zenin, Dmitry"]
[WhiteFideId "2151758"]
[BlackFideId "4127897"]
[WhiteElo "2068"]
[BlackElo "2215"]
[Result "0-1"]
[Round "07"]
[TimeControl "180+2"]
[Date "2023.05.30"]
[WhiteClock "0:01:15"]
[BlackClock "0:00:29"]

1. d4 {[%clk 0:02:58]}  Nf6 {[%clk 0:02:59]} 2. c4 {[%clk 0:02:58]}  g6 {[%clk 0:02:59]} 3. Nf3 {[%clk 0:02:58]}  Bg7 {[%clk 0:02:59]} 4. Nc3 {[%clk 0:02:57]}  O-O {[%clk 0:02:59]} 5. e4 {[%clk 0:02:58]}  d6 {[%clk 0:03:00]} 6. Be2 {[%clk 0:02:58]}  Na6 {[%clk 0:02:59]} 7. O-O {[%clk 0:02:59]}  e5 {[%clk 0:02:59]} 8. Be3 {[%clk 0:02:58]}  Ng4 {[%clk 0:02:55]} 9. Bg5 {[%clk 0:02:58]}  Qe8 {[%clk 0:02:55]} 10. d5 {[%clk 0:02:58]}  f5 {[%clk 0:02:44]} 11. Nd2 {[%clk 0:02:54]}  Nf6 {[%clk 0:02:43]} 12. f3 {[%clk 0:02:53]}  Nh5 {[%clk 0:02:34]} 13. Be3 {[%clk 0:02:39]}  Nf4 {[%clk 0:02:29]} 14. g3 {[%clk 0:02:37]}  Nxe2+ {[%clk 0:02:27]} 15. Qxe2 {[%clk 0:02:37]}  f4 {[%clk 0:02:26]} 16. Bf2 {[%clk 0:02:36]}  h5 {[%clk 0:02:23]} 17. Rab1 {[%clk 0:02:31]}  g5 {[%clk 0:02:11]} 18. b4 {[%clk 0:02:30]}  Bh3 {[%clk 0:02:05]} 19. Rfc1 {[%clk 0:02:29]}  g4 {[%clk 0:02:05]} 20. fxg4 {[%clk 0:02:24]}  hxg4 {[%clk 0:01:59]} 21. c5 {[%clk 0:02:23]}  Bh6 {[%clk 0:01:55]} 22. Qd3 {[%clk 0:02:10]}  fxg3 {[%clk 0:01:09]} 23. Bxg3 {[%clk 0:02:09]}  dxc5 {[%clk 0:01:08]} 24. bxc5 {[%clk 0:02:04]}  Nxc5 {[%clk 0:01:07]} 25. Qc4 {[%clk 0:01:50]}  Bxd2 {[%clk 0:00:56]} 26. Qxc5 {[%clk 0:01:49]}  Bxc1 {[%clk 0:00:52]} 27. Rxc1 {[%clk 0:01:49]}  Qf7 {[%clk 0:00:52]} 28. Qc4 {[%clk 0:01:40]}  Qf3 {[%clk 0:00:51]} 29. Qe2 {[%clk 0:01:38]}  Rae8 {[%clk 0:00:41]} 30. Qxf3 {[%clk 0:01:34]}  Rxf3 {[%clk 0:00:39]} 31. Bf2 {[%clk 0:01:24]}  Ref8 {[%clk 0:00:33]} 32. Rc2 {[%clk 0:01:22]}  a6 {[%clk 0:00:30]} 33. Ne2 {[%clk 0:01:15]}  Rxf2 {[%clk 0:00:29]} 0-1


[Site "https://www.chess.com"]